bitfinex/quotes_ETHUSD_20240713
["timestamp","ask_amount","ask_price","bid_price","bid_amount"]
[1720875714562,2.3329,3164.6,3164.0,0.31289111]
[1720875714731,2.3329,3164.6,3163.7,2.21258]
[1720875715143,0.09310405,3164.5,3163.7,2.21258]
[1720875715636,0.09310405,3164.5,3163.5,2.21271]
[1720875716176,2.3329,3164.6,3163.5,2.21271]
[1720875716347,0.55,3164.5,3163.5,2.21271]
[1720875716546,0.55,3164.5,3163.6,0.521271]
[1720875716758,0.09307131,3164.4,3163.6,0.521271]
[1720875717081,0.09307131,3164.4,3163.5,2.21271]
[1720875717262,0.11189466,3164.4,3163.5,2.21271]
[1720875718741,2.3238,3164.3,3163.2,2.21294]
[1720875719034,0.64304158,3164.2,3163.2,5.21294]
[1720875719480,0.55,3164.2,3163.2,5.21294]
[1720875719972,0.55,3164.2,3163.3,0.742592]
[1720875720178,0.55,3164.2,3163.3,5.955462]
[1720875720379,2.3238,3164.3,3163.5,2.21273]
[1720875720739,0.09304158,3164.2,3163.5,2.21273]
[1720875720937,2.3238,3164.3,3163.5,2.21273]
[1720875721482,2.3238,3164.3,3163.5,3.0295492]
[1720875722290,2.3238,3164.3,3163.6,2.21266]
[1720875722879,2.3238,3164.3,3163.7,2.27579877]
[1720875723252,2.3238,3164.3,3163.7,2.21259]
[1720875723840,2.3238,3164.3,3163.8,0.06320852]
[1720875724669,2.3238,3164.3,3163.7,2.21259]
[1720875724988,2.3238,3164.3,3163.7,2.73680392]
[1720875725691,2.3238,3164.3,3163.8,0.06320859]
[1720875725849,2.3238,3164.3,3163.5,5.2422292]
[1720875726041,2.3238,3164.3,3163.5,3.09270779]
[1720875726347,2.3238,3164.3,3163.7,2.21259]
[1720875726588,2.3238,3164.3,3163.7,2.80632839]
[1720875727593,0.33074051,3164.4,3163.9,2.21245]
[1720875727802,0.33074051,3164.4,3164.0,2.21234]
[1720875727803,0.09302319,3164.3,3164.0,2.21234]
[1720875729013,0.09302319,3164.3,3163.8,2.21251]
[1720875729305,0.09302319,3164.3,3163.8,2.70807198]
[1720875730188,0.09302319,3164.3,3163.5,2.2127]
[1720875730587,0.09302319,3164.3,3163.7,2.21259]
[1720875731692,2.3671,3164.2,3163.6,2.21266]
[1720875732118,0.09301224,3164.1,3163.6,2.21266]
[1720875732809,2.3671,3164.2,3163.6,2.21266]
[1720875733125,2.3671,3164.2,3163.7,0.221266]
[1720875734614,2.3671,3164.2,3163.7,2.433846]
[1720875735157,2.3671,3164.2,3163.7,2.21258]
[1720875737564,0.33074051,3164.4,3163.8,2.21246]
[1720875737835,2.3671,3164.2,3163.8,2.21246]
[1720875738055,2.3671,3164.2,3163.6,2.21265]
[1720875738546,2.3671,3164.2,3163.4,2.21275]
[1720875738759,2.3671,3164.2,3163.5,2.58043937]
[1720875740066,2.11368673,3164.2,3163.5,2.58043937]
[1720875740552,2.11368673,3164.2,3163.5,0.36770937]
[1720875740759,0.55,3164.1,3163.5,0.36770937]
[1720875740915,2.11368673,3164.2,3163.5,0.36770937]
[1720875741115,2.11368673,3164.2,3163.6,0.25804494]
[1720875742348,2.11368673,3164.2,3163.5,0.36770937]
[1720875748181,2.11368673,3164.2,3163.5,2.58043937]
[1720875748970,2.11368673,3164.2,3163.6,2.21265]
[1720875751055,2.11368673,3164.2,3163.5,0.36770937]
[1720875751243,2.11368673,3164.2,3163.5,2.58043937]
[1720875751658,2.11368673,3164.2,3163.5,0.36770937]
[1720875753790,0.01882335,3164.1,3163.3,7.41]
[1720875754095,2.2503,3164.0,3163.3,7.41]
[1720875754270,0.55,3164.3,3163.3,7.41]
[1720875754271,2.26912335,3163.9,3163.3,7.41]
[1720875755078,0.09244357,3163.8,3163.3,7.41]
[1720875755298,2.2503,3163.7,3163.3,7.41]
[1720875755883,0.09236646,3163.6,3162.9,7.41]
[1720875756249,2.2503,3163.7,3162.9,7.41]
[1720875758456,2.81912335,3163.6,3162.9,7.41]
[1720875758775,2.2503,3163.5,3162.9,7.41]
[1720875759165,0.09228138,3163.4,3162.9,7.41]
[1720875764615,0.09228138,3163.4,3163.0,2.21308]
[1720875764907,0.09228138,3163.4,3163.1,2.21297]
[1720875765277,2.2503,3163.9,3163.1,2.21297]
[1720875766906,2.2503,3163.9,3162.9,9.6231]
[1720875767417,0.55,3163.8,3162.9,9.6231]
[1720875767613,2.2503,3163.9,3162.9,9.6231]
[1720875767848,2.2503,3163.9,3163.0,2.21308]
[1720875768547,2.2503,3163.9,3163.0,4.65150075]
[1720875768847,2.2503,3163.9,3163.1,1.42746008]
[1720875769357,2.2503,3163.9,3163.2,0.06322105]
[1720875769553,2.2503,3163.9,3163.1,3.64042008]
[1720875771041,2.2503,3163.9,3163.1,1.42746008]
[1720875771226,2.2503,3163.9,3163.0,2.21308]
[1720875775088,2.2503,3163.9,3162.9,7.41]
[1720875775649,2.2503,3163.9,3162.9,9.62314]
[1720875776583,2.2503,3163.9,3162.9,7.41]
[1720875776878,2.3,3163.7,3162.9,7.41]
[1720875777678,2.6307227,3163.7,3162.9,7.41]
[1720875784081,2.6307227,3163.7,3162.9,9.7852]
[1720875784668,0.3307227,3163.7,3163.0,2.27623872]
[1720875784989,0.3307227,3163.7,3163.1,2.21301]
[1720875785293,0.3307227,3163.7,3163.2,0.06321792]
[1720875785708,0.3307227,3163.7,3163.2,2.27615792]
[1720875786053,0.3307227,3163.7,3163.4,2.3752]
[1720875786259,0.08701826,3163.6,3163.5,0.06321145]
[1720875786508,2.3,3164.3,3163.6,2.21261]
[1720875786509,0.330728,3164.2,3163.6,2.21261]
[1720875787604,0.330728,3164.2,3163.7,2.21259]
[1720875787810,0.330728,3164.2,3163.8,0.221259]
[1720875788104,0.08707733,3164.1,3163.8,0.221259]
[1720875788679,0.08707733,3164.1,3163.8,2.433769]
[1720875788871,0.330728,3164.2,3163.8,2.433769]
[1720875789071,0.330728,3164.2,3163.9,2.21244]
[1720875789271,0.330728,3164.2,3164.0,0.2433699]
[1720875789810,2.4732,3164.6,3164.0,0.2433699]
[1720875789970,2.4732,3164.6,3163.9,2.2124]
[1720875790171,0.08720247,3164.5,3163.9,2.2124]
[1720875790405,0.08720247,3164.5,3163.8,2.21252]
[1720875791305,0.08720247,3164.5,3163.9,2.21245]
[1720875791511,0.08720247,3164.5,3163.7,2.21257]
[1720875791708,2.4732,3164.6,3163.8,2.433757]
[1720875791914,0.08719699,3164.4,3163.8,2.433757]
[1720875792099,2.4732,3164.6,3163.8,2.433757]
[1720875792405,0.08719151,3164.3,3163.8,2.433757]
[1720875792725,0.08718603,3164.2,3163.9,2.27565442]
[1720875792918,2.4732,3164.6,3164.0,0.24969114]
[1720875793222,2.4732,3164.6,3164.1,0.06320181]
[1720875794161,3.0,3165.3,3164.1,0.06320181]
[1720875794440,2.4732,3165.2,3164.3,2.21215]
[1720875801039,0.08729311,3165.1,3164.3,2.21215]
[1720875801242,3.08729311,3165.1,3164.3,2.21215]
[1720875802161,3.08729311,3165.1,3164.2,2.21218]
[1720875803166,0.55,3165.0,3164.1,9.6223]
[1720875803350,0.63728763,3165.0,3164.1,9.6223]
[1720875804368,0.63728763,3165.0,3164.1,11.08014511]
[1720875804661,0.08728763,3165.0,3164.3,2.21213]
[1720875804869,0.08728763,3165.0,3164.4,2.21209]
[1720875805065,0.08728763,3165.0,3164.5,0.06319397]
[1720875805227,2.4732,3165.4,3164.5,0.06319397]
[1720875805429,0.55,3165.3,3164.5,0.51193537]
[1720875805838,2.4732,3165.4,3164.5,0.51193537]
[1720875806165,2.4732,3165.4,3164.5,0.4487414]
[1720875806469,2.4732,3165.4,3164.3,4.70627]
[1720875807328,0.63758395,3165.3,3164.3,4.70627]
[1720875809441,0.63758395,3165.3,3164.4,2.2121]
[1720875809640,0.08758395,3165.3,3164.6,2.21195]
[1720875811173,0.08758395,3165.3,3164.8,4.48782]
[1720875811357,0.01882335,3166.7,3165.0,2.21168]
[1720875811550,0.08755741,3165.2,3165.1,2.27479216]
[1720875811866,2.3983,3166.4,3165.1,9.68479216]
[1720875812275,2.3983,3166.4,3165.1,2.27479216]
[1720875812469,2.3983,3166.4,3165.1,9.68479216]
[1720875812787,5.3983,3166.4,3165.2,2.21155]
[1720875813070,0.08784018,3166.3,3165.2,2.21155]
[1720875813434,0.08784018,3166.3,3165.2,2.18440322]
[1720875814378,0.55,3166.2,3165.2,2.18440322]
[1720875814665,0.63785199,3166.2,3165.2,2.18440322]
[1720875816346,0.63785199,3166.2,3165.3,2.276]
[1720875816755,0.63785199,3166.2,3165.2,2.18440322]
[1720875818755,0.63785199,3166.2,3165.2,2.18129914]
[1720875820151,2.3983,3166.1,3165.1,7.41]
[1720875820354,0.55,3166.0,3165.1,7.41]
[1720875820588,3.63792027,3166.0,3165.1,7.41]
[1720875820964,0.01882335,3165.9,3165.1,7.41]
[1720875821166,0.10673644,3165.9,3165.1,7.41]
[1720875821591,0.55,3165.8,3165.1,7.41]
[1720875821777,0.63790173,3165.8,3165.1,7.41]
[1720875821981,2.3983,3165.7,3164.8,19.54]
[1720875822298,0.01882335,3165.6,3164.8,7.41]
[1720875822499,0.56882335,3165.6,3164.8,7.41]
[1720875822791,0.08782049,3165.5,3164.8,7.41]
[1720875822975,0.55,3165.4,3164.8,7.41]
[1720875823150,0.63781502,3165.4,3164.8,7.41]
[1720875823613,0.01882335,3165.3,3164.8,7.41]
[1720875823900,0.10663289,3165.3,3164.8,7.41]
[1720875824114,0.55,3165.2,3164.8,7.41]
[1720875824316,2.96712335,3165.2,3164.8,7.41]
[1720875824823,0.08772548,3165.1,3164.8,7.41]
[1720875825178,0.01882335,3165.0,3164.8,7.41]
[1720875825380,0.01882335,3165.0,3164.2,7.41]
[1720875825381,0.63772,3165.0,3164.2,7.41]
[1720875825607,0.01882335,3164.9,3164.2,7.41]
[1720875825823,0.10651721,3164.9,3164.2,7.41]
[1720875826689,2.9483,3164.8,3164.2,7.41]
[1720875826890,0.10642404,3164.7,3164.2,7.41]
[1720875827806,0.10642404,3164.7,3163.7,7.41]
[1720875828007,0.55,3164.6,3163.7,7.41]
[1720875828502,0.56882335,3164.7,3163.7,7.41]
[1720875828715,0.55,3164.7,3163.7,7.41]
[1720875828914,0.55,3164.7,3163.8,2.4593]
[1720875829885,0.55,3164.7,3163.8,4.67182]
[1720875830201,5.2765,3165.1,3163.9,1.208182]
[1720875830396,0.55,3165.0,3163.9,1.208182]
[1720875830599,3.63757793,3165.0,3163.9,1.208182]
[1720875835834,3.63757793,3165.0,3163.9,3.420632]
[1720875836039,3.63757793,3165.0,3164.1,2.4593]
[1720875836376,0.63757793,3165.0,3164.1,2.4593]
[1720875839051,3.0,3165.3,3164.1,2.4593]
[1720875839251,0.55,3165.2,3164.1,2.4593]
[1720875839457,3.56882335,3165.3,3164.1,2.4593]
[1720875839754,0.08753942,3165.2,3164.1,3.32732352]
[1720875840054,0.55,3165.1,3164.1,3.32732352]
[1720875840435,0.55,3165.2,3164.1,3.32732352]
[1720875843935,0.55,3165.2,3164.2,2.52249626]
[1720875844128,0.08753051,3165.1,3164.2,2.4593]
[1720875844329,0.08753051,3165.1,3164.2,3.75426035]
[1720875844732,0.08753051,3165.1,3164.3,2.4593]
[1720875845345,2.2765,3165.7,3164.3,2.4593]
[1720875845553,0.08753188,3165.0,3164.3,2.4593]
[1720875845829,0.55,3165.6,3164.2,1.29496035]
[1720875845830,3.55,3165.6,3164.5,2.4593]
[1720875846031,0.0875264,3164.9,3164.5,2.4593]
[1720875846230,3.55,3165.6,3164.5,2.4593]
[1720875846683,0.08755927,3165.5,3164.5,2.4593]
[1720875846882,0.55,3165.4,3164.5,2.4593]
[1720875847092,0.55,3165.4,3164.6,0.24593]
[1720875847231,0.08754831,3165.3,3164.7,2.4593]
[1720875849081,0.33069414,3165.2,3164.7,2.4593]
[1720875849575,0.08753736,3165.1,3164.7,2.4593]
[1720875850838,0.88653736,3165.1,3164.7,2.4593]
[1720875854431,0.88653736,3165.1,3164.2,2.4522]
[1720875854432,0.799,3164.9,3164.2,2.4522]
[1720875854633,0.799,3164.7,3164.2,2.4522]
[1720875856167,0.799,3164.9,3164.2,2.4522]
[1720875856464,0.08750826,3164.6,3164.2,2.4522]
[1720875856666,0.33069414,3165.2,3164.4,2.4522]
[1720875856866,1.12969414,3165.2,3164.4,2.4522]
[1720875857169,0.08460232,3165.1,3164.4,2.4522]
[1720875857554,0.799,3165.0,3164.4,2.4522]
[1720875857949,0.799,3164.8,3164.4,2.4522]
[1720875859888,0.799,3164.8,3164.0,9.62238]
[1720875860177,0.799,3164.6,3164.1,2.4522]
[1720875860678,0.0845831,3164.5,3164.1,2.4522]
[1720875861654,0.799,3164.8,3164.1,2.4522]
[1720875861859,0.08453837,3164.4,3164.1,2.4522]
[1720875862067,3.01882335,3165.1,3164.1,4.872665]
[1720875862362,0.799,3164.8,3164.1,2.4522]
[1720875862763,0.08455481,3164.7,3164.1,2.4522]
[1720875864300,1.1297209,3164.6,3164.1,2.4522]
[1720875864594,0.08455921,3164.5,3164.1,2.4522]
[1720875869064,0.08455921,3164.5,3163.8,2.2688]
[1720875869282,0.799,3164.1,3163.8,2.2688]
[1720875869876,0.799,3164.3,3163.8,2.2688]
[1720875871526,0.08452228,3164.2,3163.8,2.2688]
[1720875871810,1.1297209,3164.6,3163.9,2.2688]
[1720875872012,0.0845168,3164.1,3164.0,0.448132]
[1720875872210,1.1297209,3164.6,3164.0,0.448132]
[1720875872413,0.0845168,3164.1,3164.0,0.448132]
[1720875872586,0.3307209,3164.6,3164.0,0.448132]
[1720875872790,0.3307209,3164.6,3164.1,0.2716932]
[1720875873103,0.3307209,3164.6,3164.2,2.2688]
[1720875873500,0.3307209,3164.6,3164.2,1.87973055]
[1720875873697,0.799,3164.5,3163.8,2.21252]
[1720875876216,0.08448204,3164.4,3163.8,2.21252]
[1720875876512,0.08448204,3164.4,3163.9,2.2688]
[1720875876918,0.799,3164.5,3163.9,2.2688]
[1720875877219,0.799,3164.3,3163.9,2.2688]
[1720875877396,0.799,3164.3,3163.6,4.48146]
[1720875878715,0.799,3164.3,3163.6,2.2688]
[1720875879303,0.799,3164.1,3163.6,2.2688]
[1720875880215,0.33069676,3164.2,3163.6,2.2688]
[1720875880623,0.33069676,3164.2,3163.6,4.48146]
[1720875881422,0.33069676,3164.2,3163.7,2.21259]
[1720875883320,0.33069676,3164.2,3163.8,4.54447555]
[1720875883517,0.33069676,3164.2,3164.0,2.2688]
[1720875888440,0.33069676,3164.2,3164.0,4.48116]
[1720875889699,0.33069676,3164.2,3164.0,2.2688]
[1720875890198,0.33069676,3164.2,3163.9,2.66689755]
[1720875890199,0.33069676,3164.2,3163.9,0.45444755]
[1720875890426,0.33069676,3164.2,3163.8,2.21247]
[1720875892136,0.33069676,3164.2,3163.7,2.2766]
[1720875892339,0.799,3164.1,3163.7,2.2766]
[1720875893040,0.799,3164.1,3163.4,2.2766]
[1720875893203,0.799,3164.1,3163.4,7.48936]
[1720875893400,0.799,3164.1,3163.4,9.200588]
[1720875894942,0.799,3164.1,3163.4,5.2766]
[1720875905477,3.2803,3164.1,3163.4,5.2766]
[1720875907164,3.2803,3164.1,3163.4,3.0]
[1720875908246,0.799,3163.9,3163.3,7.41]
[1720875908469,0.799,3163.7,3163.3,7.41]
[1720875910549,0.33073514,3163.9,3163.3,7.41]
[1720875910751,1.12973514,3163.9,3163.3,7.41]
[1720875910943,1.12973514,3163.9,3163.2,2.2766]
[1720875911132,0.33073514,3163.9,3163.2,2.2766]
[1720875911951,0.33073514,3163.9,3163.3,2.661816]
[1720875912157,0.33073514,3163.9,3163.4,2.4975]
[1720875912372,0.33073514,3163.9,3163.3,2.21282]
[1720875912550,0.33073514,3163.9,3163.4,2.4975]
[1720875913484,0.33073514,3163.9,3163.4,4.7103]
[1720875914855,0.33073514,3163.9,3163.5,2.21273]
[1720875915247,0.33073514,3163.9,3163.5,2.905035]
[1720875916434,0.33073514,3163.9,3163.5,5.117715]
[1720875917247,0.33073514,3163.9,3163.6,2.21266]
[1720875917676,0.08433322,3163.8,3163.5,0.692305]
[1720875917951,0.08433322,3163.8,3163.6,2.21266]
[1720875918144,0.33073514,3163.9,3163.6,2.9741755]
[1720875918573,0.08434004,3163.8,3163.6,2.9741755]
[1720875918871,0.33073514,3163.9,3163.6,2.9741755]
[1720875919071,0.33073514,3163.9,3163.6,2.21266]
[1720875919268,0.08434004,3163.8,3163.6,2.21266]
[1720875919768,0.33073514,3163.9,3163.6,2.21266]
[1720875920279,0.08434004,3163.8,3163.6,2.21266]
[1720875920768,0.33073514,3163.9,3163.4,4.71026]
[1720875921987,0.33073514,3163.9,3163.5,2.21269]
[1720875924953,0.33073514,3163.9,3163.4,0.692311]
[1720875925165,0.33073514,3163.9,3163.3,2.21285]
[1720875938615,0.33073514,3163.9,3163.1,2.21296]
[1720875938822,0.33073514,3163.9,3163.2,2.21293]
[1720875939330,0.799,3163.8,3163.2,2.21293]
[1720875941229,0.799,3163.8,3163.1,3.0]
[1720875941925,0.799,3163.8,3163.1,3.4539934]
[1720875942357,0.799,3163.8,3163.1,5.6670034]
[1720875942945,0.33073514,3163.9,3163.1,5.6670034]
[1720875946565,0.33073514,3163.9,3163.1,7.8799534]
[1720875947565,0.33073514,3163.9,3163.2,2.21294]
[1720875947767,0.33073514,3163.9,3163.2,3.74192834]
[1720875954553,2.4066,3163.8,3163.2,3.74192834]
[1720875955857,3.2056,3163.8,3163.2,3.74192834]
[1720875956170,3.2056,3163.8,3163.2,1.52898834]
[1720875956691,2.4066,3163.8,3163.2,3.74192834]
[1720875956870,2.4066,3163.8,3163.3,0.94089317]
[1720875958069,2.4066,3163.8,3163.1,3.0]
[1720875958267,0.799,3163.6,3163.0,7.41]
[1720875958471,2.4066,3163.5,3163.0,7.41]
[1720875961505,2.4066,3163.5,3162.8,2.21316]
[1720875961701,1.12974447,3163.6,3162.8,2.21315]
[1720875961918,0.33074447,3163.6,3162.9,5.009525]
[1720875962893,0.33074447,3163.6,3163.3,2.21285]
[1720875963080,0.13429201,3163.5,3163.4,4.48785]
[1720875963284,0.33070031,3163.9,3163.4,6.7006]
[1720875963477,0.13431591,3163.5,3163.4,6.7006]
[1720875963791,0.33070031,3163.9,3163.4,7.45056]
[1720875963992,0.33070031,3163.9,3163.5,2.21272]
[1720875964161,0.1343267,3163.8,3163.5,2.21272]
[1720875967563,0.33070031,3163.9,3163.5,2.21272]
[1720875969361,2.2882,3163.8,3163.3,2.21281]
[1720875969558,2.2882,3163.8,3163.3,2.900672]
[1720875969877,1.12970031,3163.9,3163.4,2.21279]
[1720875970662,0.799,3163.7,3163.2,2.21291]
[1720875972517,0.799,3163.7,3163.1,3.0]
[1720875972518,2.2882,3163.6,3163.1,3.0]
[1720875972716,0.799,3163.5,3163.1,3.0]
[1720875973221,2.2882,3163.6,3163.1,3.0]
[1720875973721,2.2882,3163.6,3163.0,3.0]
[1720875973929,2.2882,3163.6,3163.0,4.0400575]
[1720875974229,2.2882,3163.6,3163.0,1.0400575]
[1720875974551,2.2882,3163.6,3162.9,4.66604]
[1720875975494,2.2882,3163.6,3162.9,2.21314]
[1720875978107,0.799,3163.5,3162.7,9.62325]
[1720875978752,1.12976358,3163.5,3162.8,2.21322]
[1720875978920,0.33076358,3163.5,3162.9,4.66605]
[1720875979247,0.33076358,3163.5,3163.0,0.687927]
[1720875979639,0.33076358,3163.5,3163.0,2.900997]
[1720875980343,2.61896358,3163.5,3163.0,2.900997]
[1720875980547,2.61896358,3163.5,3163.0,2.21307]
[1720875982853,0.33076358,3163.5,3163.0,2.21307]
[1720875985154,0.33076358,3163.5,3163.0,4.4261]
[1720875985880,0.33076358,3163.5,3163.1,2.21301]
[1720875986034,0.33076358,3163.5,3162.8,0.799]
[1720875986035,0.33076358,3163.5,3163.2,4.72904691]
[1720875986241,0.33076358,3163.5,3163.4,2.2128]
[1720875986755,0.33074147,3163.9,3163.4,2.2128]
[1720875986964,0.1297423,3163.8,3163.4,2.27600956]
[1720875987180,0.1297423,3163.8,3163.5,2.21269]
[1720875987337,0.1297423,3163.8,3163.7,2.21259]
[1720875987540,0.33074147,3163.9,3163.7,2.21259]
[1720875987541,0.33074147,3163.9,3163.8,2.21252]
[1720875987769,3.1657,3164.7,3164.0,2.21238]
[1720875988080,0.33076666,3164.3,3164.0,2.21238]
[1720875988451,0.12981283,3164.2,3164.1,2.21231]
[1720875988796,0.33076666,3164.3,3164.1,2.66110573]
[1720875989540,0.33076666,3164.3,3164.2,2.21224]
[1720875995343,0.33076666,3164.3,3164.1,2.66109573]
[1720875995548,0.33076666,3164.3,3164.1,2.2123]
[1720875999453,0.33076666,3164.3,3163.9,2.21245]
[1720876001807,0.33076666,3164.3,3164.1,2.21231]
[1720876002991,0.33076666,3164.3,3163.8,3.0]
[1720876003317,3.1657,3164.2,3163.8,3.0]
[1720876003667,3.1657,3164.2,3163.7,9.62259]
[1720876003668,3.1657,3164.2,3163.7,7.41]
[1720876004805,0.799,3164.0,3163.7,7.41]
[1720876005488,0.799,3164.0,3163.4,2.2128]
[1720876005796,0.799,3164.0,3163.4,5.2128]
[1720876006600,0.799,3164.0,3163.4,2.2128]
[1720876010430,0.799,3164.0,3163.2,12.03959]
[1720876010627,0.799,3164.0,3163.2,9.62289]
[1720876011023,2.3106,3163.9,3163.2,9.62289]
[1720876011324,0.799,3163.8,3163.2,9.62289]
[1720876012446,0.799,3163.8,3163.2,7.41]
[1720876015111,0.799,3163.8,3163.1,4.67151]
[1720876015307,0.799,3163.8,3163.2,2.21294]
[1720876016465,2.6413697,3163.9,3163.3,0.06321731]
[1720876016621,0.3307697,3163.9,3163.4,2.21274]
[1720876017056,0.3307697,3163.9,3163.4,4.42548]
[1720876017260,0.3307697,3163.9,3163.5,2.21273]
[1720876019320,0.3307697,3163.9,3163.6,2.4585]
[1720876020915,0.3307697,3163.9,3163.6,4.67114]
[1720876021374,3.0,3165.1,3163.7,2.21259]
[1720876021375,2.3106,3164.5,3163.7,2.21259]
[1720876021589,2.3106,3164.5,3163.9,2.2124]
[1720876021722,0.3307393,3164.3,3163.9,2.2124]
[1720876021922,0.3307393,3164.3,3163.9,2.654899]
[1720876022121,0.13001599,3164.2,3163.9,2.654899]
[1720876022375,0.3307393,3164.3,3163.9,2.654899]
[1720876022875,0.3307393,3164.3,3163.7,2.21259]
[1720876022876,0.92901599,3164.2,3163.7,2.21259]
[1720876023225,0.799,3164.2,3163.7,2.21259]
[1720876023736,0.799,3164.0,3163.5,2.21272]
[1720876024458,2.3106,3164.2,3163.0,2.4585]
[1720876024685,0.799,3163.6,3163.0,2.21303]
[1720876024971,2.3106,3163.7,3163.1,2.213]
[1720876025625,2.3106,3164.1,3163.1,2.213]
[1720876025947,0.799,3164.0,3163.4,2.2128]
[1720876027375,0.799,3163.8,3163.2,2.21289]
[1720876027533,0.799,3163.8,3163.1,2.21301]
[1720876027733,0.799,3163.6,3163.1,2.21301]
[1720876027933,3.1707,3163.6,3163.0,3.0]
[1720876028564,3.1707,3163.6,3163.0,5.21307]
[1720876029174,3.1707,3163.6,3163.0,5.79010982]
[1720876029379,3.1707,3163.6,3163.1,2.21301]
[1720876029901,3.1707,3163.6,3163.0,3.57703982]
[1720876030478,3.1707,3163.6,3163.0,5.79010982]
[1720876032479,0.799,3163.4,3163.0,3.0]
[1720876033081,3.1707,3163.6,3163.0,3.0]
[1720876034087,3.1707,3163.6,3162.9,2.21315]
[1720876035714,0.799,3163.4,3162.9,2.21315]
[1720876036974,0.799,3163.4,3162.8,3.0]
[1720876037170,0.799,3163.4,3162.9,0.74265]
[1720876038406,2.3717,3163.6,3162.7,2.21324]
[1720876038407,0.799,3163.2,3162.7,2.21324]
[1720876038716,0.799,3163.2,3162.6,7.41]
[1720876038871,2.3717,3163.1,3162.6,9.62336]
[1720876040907,0.799,3163.0,3162.6,7.41]
[1720876044797,0.799,3163.0,3162.4,0.0360931]
[1720876045497,0.799,3162.8,3162.4,0.0360931]
[1720876045732,0.799,3162.8,3162.4,1.00205441]
[1720876048495,0.799,3163.1,3162.5,2.2653]
[1720876048923,0.799,3163.1,3162.5,4.47873]
[1720876049123,0.799,3163.4,3162.6,2.27653972]
[1720876049410,0.799,3163.4,3162.7,0.67552697]
[1720876049927,0.12967462,3163.3,3162.7,0.67552697]
[1720876050127,0.799,3163.2,3162.7,0.67552697]
[1720876051021,0.799,3163.2,3162.6,2.21331]
[1720876051022,2.4585,3163.5,3162.4,0.0360931]
[1720876051222,0.799,3162.7,3162.4,0.0360931]
[1720876051621,2.4585,3163.0,3162.4,0.0360931]
[1720876051622,0.799,3162.9,3162.4,0.0360931]
[1720876055020,0.799,3162.7,3162.4,0.0360931]
[1720876058141,0.799,3162.5,3162.4,0.0360931]
[1720876060750,3.2575,3162.5,3162.4,0.0360931]
[1720876062060,0.33077334,3163.0,3162.4,0.0360931]
[1720876062258,0.799,3162.5,3162.4,0.0360931]
[1720876067440,1.129719,3162.5,3162.4,0.0360931]
[1720876068898,1.25911031,3162.5,3162.4,0.0360931]
[1720876073296,3.53401031,3162.5,3162.4,0.0360931]
[1720876075670,1.25911031,3162.5,3162.4,0.0360931]
[1720876081612,0.46011031,3162.5,3162.4,0.0360931]
[1720876081812,1.25911031,3162.5,3162.4,0.0360931]
[1720876082017,3.53401031,3162.5,3162.4,0.0360931]
[1720876083618,1.25911031,3162.5,3162.4,0.0360931]
[1720876084900,3.53401031,3162.5,3162.4,0.0360931]
[1720876091928,1.25911031,3162.5,3162.4,0.0360931]
[1720876096769,3.58281031,3162.5,3162.4,0.0360931]
[1720876103788,0.46011031,3162.5,3162.4,0.0360931]
[1720876104073,1.25911031,3162.5,3162.4,0.0360931]
[1720876111368,1.27793366,3162.5,3162.4,0.0360931]
[1720876112150,4.19293366,3162.5,3162.4,0.0360931]
[1720876113278,7.19293366,3162.5,3161.7,7.41]
[1720876113462,0.799,3161.8,3161.7,7.41]
[1720876113837,0.92817862,3161.8,3161.7,7.41]
[1720876114042,1.25882328,3161.8,3161.4,2.4523]
[1720876114240,0.799,3161.5,3161.4,2.4523]
[1720876116578,0.799,3161.5,3161.0,2.4523]
[1720876116756,0.799,3161.1,3161.0,2.4523]
[1720876121962,0.799,3161.1,3160.6,2.4523]
[1720876122289,2.365,3161.5,3160.6,2.4523]
[1720876122584,0.799,3161.1,3160.8,2.4523]
[1720876122792,0.799,3161.2,3160.8,2.4523]
[1720876123895,0.33064466,3161.8,3160.9,2.4523]
[1720876124061,0.33064466,3161.8,3160.8,2.21462]
[1720876124062,0.799,3161.2,3161.1,2.4523]
[1720876125606,0.799,3161.4,3161.1,2.4523]
[1720876125823,0.1268568,3161.2,3161.1,2.4523]
[1720876126035,0.799,3161.4,3161.1,2.4523]
[1720876126317,0.799,3161.6,3161.3,2.4523]
[1720876126519,0.12687264,3161.5,3161.3,2.51556041]
[1720876126884,0.799,3161.7,3161.3,2.51556041]
[1720876127086,0.799,3161.7,3161.5,2.4523]
[1720876127526,0.33064466,3161.8,3161.5,2.51555846]
[1720876127729,0.12689863,3161.7,3161.5,2.4523]
[1720876128026,0.799,3162.0,3161.5,2.4523]
[1720876128226,0.12689504,3161.6,3161.5,2.4523]
[1720876128434,0.799,3161.8,3161.5,2.9470246]
[1720876128745,0.799,3161.8,3161.5,5.1611446]
[1720876132320,0.799,3161.8,3161.6,2.4976]
[1720876132486,0.799,3161.8,3161.6,2.21406]
[1720876132687,0.799,3161.8,3161.7,2.4976]
[1720876133114,0.799,3161.8,3161.7,3.01823846]
[1720876134402,0.799,3161.9,3161.7,3.01823846]
[1720876135627,0.799,3161.9,3161.7,5.23222846]
[1720876137219,0.799,3161.9,3161.7,2.4976]
[1720876137425,0.12696534,3161.8,3161.7,2.4976]
[1720876137909,0.12696534,3161.8,3161.5,4.71172]
[1720876138110,0.799,3161.6,3161.5,4.71172]
[1720876139707,0.799,3161.6,3161.5,2.4976]
[1720876141229,0.799,3161.6,3161.1,2.4976]
[1720876141530,0.33059168,3162.1,3161.1,2.4976]
[1720876141531,0.799,3161.4,3161.1,2.4976]
[1720876141740,0.799,3161.4,3161.2,2.21434]
[1720876142857,0.799,3161.4,3161.1,2.4976]